fUSD/lending_fUSD_20250201
["ID","MTS","AMOUNT","RATE_DAILY","PERIOD"]
[351213389,1738434431330,2323.41842844,0.00021,120]
[351213390,1738434432058,1192.32443339,0.00023,120]
[351213391,1738434439460,302.0,0.00023,120]
[351213392,1738434450822,150.0,0.00021903,120]
[351213393,1738434471050,367.22528676,0.0002,120]
[351213394,1738434510711,150.0,0.00021183,120]
[351213395,1738434522038,202.0,0.0002,120]
[351213396,1738434524759,800.0,0.00021,120]
[351213397,1738434525195,448.43503995,0.00022,120]
[351213398,1738434525257,420.78009118,0.00022,120]
[351213399,1738434525287,195.78,0.0002,120]
[351213400,1738434570718,150.0,0.00021565,120]
[351213401,1738434630752,150.0,0.00022458,120]
[351213407,1738434631727,-820.15295765,0.00012,2]
[351213465,1738434637723,-1024.66743271,0.00012,2]
[351213678,1738434639817,-985.319583,0.00012,2]
[351213839,1738434645704,-339.17158972,0.00012,2]
[351213840,1738434645763,-58293.09524949,0.00012,2]
[351213841,1738434645772,-320.46,0.00015064,2]
[351213842,1738434645782,-1000.0,0.00015078,2]
[351213843,1738434645791,-167.94,0.00015156,2]
[351213844,1738434645800,-172.4,0.00015196,2]
[351213845,1738434645810,-404.72,0.00015208,2]
[351213846,1738434645819,-772.49,0.00015541,2]
[351213847,1738434645829,-594.52,0.00015636,2]
[351213848,1738434645839,-298.46,0.00015678,2]
[351213849,1738434645848,-298.46,0.000157,2]
[351213850,1738434645857,-774.41,0.000157,2]
[351213851,1738434645866,-298.46,0.000157,2]
[351213852,1738434645875,-1000.0,0.000158,2]
[351213853,1738434645884,-774.41,0.000159,2]
[351213854,1738434645893,-302.56,0.000159,2]
[351213855,1738434645902,-195.96,0.000159,2]
[351213856,1738434645911,-302.75,0.000159,2]
[351213857,1738434645920,-298.46,0.000159,2]
[351213858,1738434645929,-875.1,0.000159,2]
[351213859,1738434645939,-512.0,0.000159,2]
[351213860,1738434645947,-2305.74881453,0.000159,2]
[351213861,1738434645956,-155.312031,0.00015957,7]
[351213862,1738434645966,-9641.0,0.00015979,2]
[351213863,1738434645975,-1053.24736625,0.00015979,2]
[351213864,1738434645984,-160.96792776,0.0001598,2]
[351213866,1738434645994,-1011.3724579,0.00015987,2]
[351213868,1738434646003,-132259.66292825,0.00016,4]
[351213870,1738434646012,-1053.24736617,0.00016026,2]
[351213872,1738434646021,-169.796,0.00016027,2]
[351213874,1738434646031,-2225.982,0.00016027,2]
[351213876,1738434646040,-1011.3724579,0.00016033,2]
[351213878,1738434646049,-3063.8423133,0.00016069,2]
[351213880,1738434646058,-4330.02,0.0001607,2]
[351213881,1738434646067,-4330.02,0.0001607,2]
[351213882,1738434646076,-1053.24736617,0.00016073,2]
[351213883,1738434646085,-554.635188,0.00016079,2]
[351213884,1738434646095,-1011.3724579,0.00016079,2]
[351213885,1738434646103,-199.57637456,0.00016079,2]
[351213886,1738434646112,-159.11181302,0.00016079,2]
[351213887,1738434646121,-184.12220645,0.0001608,2]
[351213888,1738434646131,-40804.90692565,0.0001608,2]
[351213898,1738434655538,774.30326074,0.00023,120]
[351213899,1738434723072,208.65976059,0.00023,120]
[351213900,1738434754409,292.0,0.00023,120]
[351213901,1738434769347,-4089.59730063,0.00015897,2]
[351213902,1738434769368,-34847.13541271,0.00015899,2]
[351213903,1738434769392,-942.3977,0.000159,2]
[351213904,1738434769415,-381.59,0.000159,2]
[351213905,1738434769439,-25766.27958666,0.00015905,2]
[351213906,1738434777189,-1027.0,0.00015905,2]
[351213907,1738434778749,500.0,0.00022739,120]
[351213908,1738434778873,372.56670247,0.00022739,120]
[351213909,1738434784973,-100000.0,0.00015905,2]
[351213910,1738434785489,-31604.35878729,0.00015905,2]
[351213911,1738434785512,-4089.59730063,0.00015912,2]
[351213912,1738434785533,-150.0,0.00015915,2]
[351213913,1738434785553,-568.0,0.00015915,2]
[351213914,1738434785576,-2486.28366757,0.00015918,2]
[351213915,1738434785597,-2486.28366757,0.00015926,2]
[351213916,1738434785619,-2486.28366757,0.00015929,2]
[351213917,1738434785643,-56129.19290937,0.00015929,2]
[351213918,1738434790092,500.0,0.00023,120]
[351213919,1738434795368,2000.0,0.00023,120]
[351213920,1738434803373,500.0,0.00023,120]
[351213921,1738434811176,150.0,0.00020663,120]
[351213922,1738434814426,200.0,0.00023,120]
[351213923,1738434870723,150.0,0.00021347,120]
[351213924,1738434903731,1792.34064651,0.00023,120]
[351213925,1738434923263,2248.86419243,0.00016438,120]
[351213926,1738434930796,150.0,0.00022558,120]
[351213927,1738434990776,150.0,0.00021997,120]
[351213928,1738435021085,314.1493566,0.00023,120]
[351213929,1738435111286,150.0,0.00022351,120]
[351213930,1738435130458,1333.0,0.00021781,120]
[351213931,1738435170698,150.0,0.00021928,120]
[351213932,1738435230816,150.0,0.00022807,120]
[351213933,1738435290747,150.0,0.00021893,120]
[351213934,1738435350723,150.0,0.00022038,120]
[351213935,1738435392091,500.0,0.00023,120]
[351213936,1738435397395,2000.0,0.00023,120]
[351213937,1738435405132,500.0,0.00023,120]
[351213938,1738435410792,150.0,0.00020917,120]
[351213939,1738435416718,200.0,0.00023,120]
[351213940,1738435591292,150.0,0.00021783,120]
[351213941,1738435595555,160.93,0.00010137,2]
[351214023,1738435650798,150.0,0.00022271,120]
[351214024,1738435717399,200.0,0.00023,120]
[351214025,1738435770763,150.0,0.0002162,120]
[351214026,1738435830724,150.0,0.00020871,120]
[351214029,1738435831719,-522.3652808,0.00012837,2]
[351214030,1738435831730,-55.1747192,0.00012837,2]
[351214031,1738435831740,-550.0,0.00013,2]
[351214032,1738435831750,-150.0,0.00013181,2]
[351214033,1738435831761,-150.0,0.00014121,2]
[351214034,1738435831771,-150.0,0.00014274,2]
[351214035,1738435831782,-188.9806308,0.00014274,2]
[351214036,1738435831793,-1805.281405,0.00014274,2]
[351214037,1738435831810,-434.45873,0.00014274,2]
[351214046,1738435832284,-4698.11622811,0.00014274,2]
[351214047,1738435832293,-300.0,0.00014299,2]
[351214049,1738435832303,-150.0,0.000143,2]
[351214051,1738435832314,-150.0,0.000143,2]
[351214054,1738435832323,-150.0,0.00014699,2]
[351214056,1738435832333,-652.12378909,0.00014707,2]
[351214058,1738435832351,-330.63540456,0.00014707,2]
[351214562,1738435837632,-17.24080635,0.00014707,2]
[351214564,1738435837641,-300.96433365,0.00014846,2]
[351214575,1738435837744,-199.03566635,0.00014846,2]
[351214577,1738435837755,-642.78,0.00014857,2]
[351214579,1738435837765,-484.33,0.00014921,2]
[351214581,1738435837775,-226.11,0.00014942,2]
[351214583,1738435837786,-600.0,0.00015,2]
[351214585,1738435837795,-750.21,0.00015046,2]
[351214587,1738435837805,-172.4,0.00015064,2]
[351214589,1738435837814,-577.54,0.00015101,2]
[351214591,1738435837824,-900.0,0.000155,5]
[351214593,1738435837834,-630.593506,0.000155,2]
[351214596,1738435837844,-1900.0,0.000156,5]
[351214597,1738435837854,-420.0,0.00015661,2]
[351214599,1738435837863,-2800.0,0.000157,5]
[351214601,1738435837874,-3800.0,0.000158,5]
[351214604,1738435837897,-500.0,0.00015801,2]
[351214606,1738435837921,-200.0,0.00015801,2]
[351214608,1738435837944,-500.0,0.00015802,2]
[351214609,1738435837964,-200.0,0.00015802,2]
[351214612,1738435837989,-200.0,0.00015802,2]
[351214614,1738435838011,-1300.0,0.00015826,2]
[351214616,1738435838034,-5925.58854263,0.00015888,2]
[351214618,1738435838057,-5925.58854263,0.0001589,2]
[351214620,1738435838079,-1875.536,0.000159,2]
[351214622,1738435838101,-4700.0,0.000159,5]
[351214624,1738435838123,-4480.0271111,0.00015906,2]
[351214626,1738435838150,-652.87999999,0.00015906,2]
[351214628,1738435838162,-792.68143154,0.00015906,2]
[351214629,1738435838173,-200.0,0.00015908,2]
[351214630,1738435838182,-4000.0,0.0001592,2]
[351214631,1738435838192,-859.79687307,0.00015929,2]
[351214632,1738435838210,-21000.0,0.00015929,2]
[351214633,1738435838221,-8895.1885577,0.00015929,2]
[351214634,1738435838233,-6452.35,0.00015929,2]
[351214635,1738435838250,-2737.11446961,0.00015929,2]
[351214637,1738435838270,-4737.41437366,0.00015929,2]
[351214802,1738435839883,-2202.23108623,0.00015929,2]
[351214809,1738435840127,-1023.0472809,0.00015929,2]
[351214810,1738435840185,-1034.6788,0.00015929,2]
[351214811,1738435840196,-345.50264046,0.00015929,2]
[351214812,1738435840207,-1347.0,0.00015929,2]
[351214821,1738435842963,-511.74210065,0.00015929,2]
[351214826,1738435845751,-446.90700308,0.00015929,2]
[351214921,1738435891331,150.0,0.00020976,120]
[351214922,1738435911360,660.5084983,0.00021781,120]
[351214923,1738435950777,150.0,0.00021077,120]
[351214924,1738435991027,500.0,0.00023,120]
[351214927,1738435995588,2000.0,0.00023,120]
[351214928,1738436002801,500.0,0.00023,120]
[351214929,1738436010759,150.0,0.0002116,120]
[351214930,1738436011604,200.0,0.00023,120]
[351214931,1738436070748,150.0,0.00021277,120]
[351214932,1738436130723,150.0,0.00022539,120]
[351214933,1738436190762,150.0,0.00021774,120]
[351214934,1738436250725,150.0,0.00022777,120]
[351214935,1738436310730,150.0,0.00022399,120]
[351214936,1738436371285,150.0,0.00021283,120]
[351214937,1738436431259,150.0,0.0002061,120]
[351214938,1738436490826,150.0,0.00019847,120]
[351214939,1738436550768,150.0,0.00021698,120]
[351214940,1738436591719,500.0,0.00023,120]
[351214941,1738436596458,2000.0,0.00023,120]
[351214942,1738436603447,500.0,0.00023,120]
[351214943,1738436610996,200.0,0.00023,120]
[351214944,1738436611308,150.0,0.00020945,120]
[351214945,1738436670709,150.0,0.00022319,120]
[351214946,1738436731496,150.0,0.00020563,120]
[351214949,1738436790744,150.0,0.0002001,120]
[351214956,1738436850922,150.0,0.0002167,120]
[351214957,1738436911301,150.0,0.00021577,120]
[351214958,1738436955937,194.03,0.00010137,2]
[351214960,1738436970719,150.0,0.0002158,120]
[351214961,1738437030712,150.0,0.00022629,120]
[351214966,1738437031906,-367.53979912,0.00013,2]
[351214967,1738437032066,-182.46020088,0.00013,2]
[351214968,1738437032079,-1052.0,0.00014178,2]
[351214969,1738437032088,-242.16,0.00014818,2]
[351214970,1738437032097,-1059.0,0.00014886,2]
[351214971,1738437032106,-228.18,0.00014898,2]
[351214972,1738437032116,-600.0,0.00015,2]
[351214973,1738437032124,-1000.0,0.00015037,2]
[351214974,1738437032134,-1964.84835655,0.00015142,2]
[351214975,1738437032153,-14186.09164345,0.00015142,2]
[351214976,1738437032163,-374.3,0.00015265,2]
[351214977,1738437032173,-170.15,0.00015434,2]
[351214978,1738437032182,-200.0,0.000155,5]
[351214979,1738437032191,-500.0,0.000156,5]
[351214980,1738437032200,-150.0,0.00015622,2]
[351214981,1738437032209,-150.0,0.00015637,2]
[351214982,1738437032219,-1006.0,0.00015637,2]
[351214983,1738437032228,-4049.236,0.00015637,2]
[351214984,1738437032237,-1108.0,0.00015637,2]
[351214985,1738437032247,-438.4,0.00015671,2]
[351214986,1738437032256,-298.24,0.00015671,2]
[351214987,1738437032265,-300.0,0.00015671,2]
[351214988,1738437032274,-411.0,0.00015671,2]
[351214989,1738437032283,-438.4,0.00015671,2]
[351214990,1738437032292,-647.13525855,0.000157,5]
[351214991,1738437032312,-52.86474145,0.000157,5]
[351214992,1738437032321,-222.26309303,0.0001577,2]
[351214993,1738437032332,-1194.54979697,0.0001577,2]
[351214994,1738437032341,-515.1664,0.0001578,2]
[351214995,1738437032351,-724.6335,0.0001578,2]
[351214996,1738437032359,-288.8193,0.0001578,2]
[351214997,1738437032369,-160.96792776,0.0001578,2]
[351214998,1738437032378,-707.96072053,0.0001578,2]
[351214999,1738437032387,-162.72532977,0.0001578,2]
[351215000,1738437032396,-1000.0,0.000158,5]
[351215001,1738437032405,-500.0,0.00015802,2]
[351215002,1738437032415,-402.48926799,0.00015823,2]
[351215003,1738437032424,-707.96072053,0.00015842,2]
[351215004,1738437032433,-150.0,0.00015846,2]
[351215005,1738437032442,-1831.833,0.00015879,2]
[351215006,1738437032452,-185.16098143,0.00015879,2]
[351215007,1738437032461,-53660.55482608,0.0001588,2]
[351215008,1738437032472,-286.59521603,0.0001588,2]
[351215009,1738437032483,-969.72820446,0.0001588,2]
[351215010,1738437032495,-1062.0764984,0.0001588,2]
[351215011,1738437032506,-994.8,0.0001588,2]
[351215022,1738437037939,-101820.0,0.0001588,2]
[351215023,1738437038097,-321.38028926,0.0001588,2]
[351215024,1738437038108,-3596.88169332,0.0001588,2]
[351215029,1738437040023,-253.4582,0.0001578,2]
[351215030,1738437040033,-22226.5418,0.0001588,2]
[351215031,1738437040293,-773.490015,0.0001588,2]
[351215032,1738437040452,-757.05108,0.0001588,2]
[351215033,1738437040464,-389.93247741,0.0001588,2]
[351215034,1738437040561,-1055.0,0.0001588,2]
[351215043,1738437043718,-251618.61224549,0.0001588,2]
[351215055,1738437045913,-581.36,0.00013261,2]
[351215056,1738437045924,-12.28498469,0.00015525,2]
[351215057,1738437046080,-569.07501531,0.00015525,2]
[351215058,1738437046092,-386.97422263,0.0001588,2]
[351215059,1738437046103,-6186.32653378,0.0001588,2]
[351215060,1738437046136,-10490.0,0.0001588,2]
[351215061,1738437046147,-650.89920002,0.0001588,2]
[351215063,1738437068476,686.69988207,0.00010661,7]
[351215064,1738437068505,20239.6030799,0.00010661,7]
[351215065,1738437091085,150.0,0.00020017,120]
[351215066,1738437118713,3067.18709749,0.00023,120]
[351215067,1738437190749,500.0,0.00023,120]
[351215068,1738437194974,2000.0,0.00023,120]
[351215069,1738437201617,451.765079,0.00023,120]
[351215070,1738437209260,200.0,0.00023,120]
[351215071,1738437210717,150.0,0.00021628,120]
[351215072,1738437270769,150.0,0.00020747,120]
[351215073,1738437313013,178982.34308689,0.00021,120]
[351215074,1738437327231,74350.16671887,0.00021,120]
[351215075,1738437331274,150.0,0.00021757,120]
[351215076,1738437391284,150.0,0.00021216,120]
[351215077,1738437450753,150.0,0.00021164,120]
[351215078,1738437510929,150.0,0.00020261,120]
[351215079,1738437570734,150.0,0.00019604,120]
[351215080,1738437631250,150.0,0.00021242,120]
[351215081,1738437690746,150.0,0.00020236,120]
[351215082,1738437751346,150.0,0.00019822,120]
[351215083,1738437790452,500.0,0.00023,120]
[351215084,1738437793757,2000.0,0.00023,120]
[351215085,1738437806606,200.0,0.00023,120]
[351215086,1738437811324,150.0,0.00022117,120]
[351215087,1738437871812,150.0,0.00022279,120]
[351215088,1738437927645,1161.07146123,0.00023,120]
[351215089,1738437930762,150.0,0.00022638,120]
[351215090,1738437933169,173.49948709,0.0002,120]
[351215092,1738437945102,285.05019669,0.00022,120]
[351215093,1738437957818,302.0,0.00023,120]
[351215096,1738437990735,150.0,0.00021861,120]
[351215097,1738438031196,2323.41842844,0.00021,120]
[351215098,1738438032045,1192.32443339,0.00023,120]
[351215100,1738438050726,150.0,0.00021461,120]
[351215101,1738438071090,367.22528676,0.0002,120]
[351215104,1738438110741,150.0,0.00021187,120]
[351215105,1738438113803,1578.03316703,9.828e-05,2]
[351215107,1738438122032,202.0,0.0002,120]
[351215109,1738438124841,800.0,0.00021,120]
[351215110,1738438125349,448.43503995,0.00022,120]
[351215111,1738438125410,195.78,0.0002,120]
[351215112,1738438125440,420.78009118,0.00022,120]
[351215113,1738438170763,150.0,0.00022914,120]
[351215114,1738438215879,178.49,0.00010137,2]
[351215123,1738438232171,-300.0,0.00011999,2]
[351215124,1738438232182,-20.53043459,0.00012,2]
[351215125,1738438232194,-1080.99860329,0.00012,2]
[351215126,1738438232385,-1368.93615679,0.00012,2]
[351215127,1738438236126,-294.899996,0.00012,2]
[351215128,1738438236384,-1837.98,0.00012,2]
[351215130,1738438238043,-1364.76033649,0.00012,2]
[351215131,1738438238055,-822.89058548,0.00012,2]
[351215132,1738438238363,-360.39053643,0.00012,2]
[351215133,1738438238374,-2498.9495711,0.00012,2]
[351215134,1738438238385,-324.58446441,0.00012,2]
[351215135,1738438238396,-1245.19823602,0.00012,2]
[351215267,1738438240138,-18036.20043311,0.00012,2]
[351215269,1738438240149,-4692.7587,0.00012,2]
[351215281,1738438240252,-649.06655648,0.00012,2]
[351215288,1738438240306,-399.6644215,0.00012,2]
[351215290,1738438240317,-256.23521,0.00012,2]
[351215301,1738438240411,-1330.36839202,0.00012,2]
[351215303,1738438240423,-495.77904948,0.00012,2]
[351215442,1738438243319,-15091.36135325,0.00012,2]
[351215443,1738438243330,-4790.36,0.00012,2]
[351215444,1738438243342,-2591.834972,0.00012,2]
[351215461,1738438246144,-500.76100829,0.00012,2]
[351215462,1738438246155,-425.79451307,0.00012,2]
[351215463,1738438246254,-152767.60095626,0.00012,2]
[351215464,1738438246267,-61786.55315089,0.00012,2]
[351215465,1738438246276,-2563.71435953,0.00012419,2]
[351215466,1738438246287,-150.0,0.00012519,2]
[351215467,1738438246296,-561.71,0.00013038,2]
[351215468,1738438246306,-420.0,0.00013172,2]
[351215469,1738438246315,-150.0,0.000132,2]
[351215470,1738438246324,-150.0,0.00013683,2]
[351215471,1738438246333,-2656.98609336,0.000142,2]
[351215472,1738438246342,-2656.98609318,0.000142,2]
[351215473,1738438246351,-2656.98609318,0.00014452,2]
[351215474,1738438246360,-587.0,0.0001446,2]
[351215475,1738438246371,-2656.98609318,0.00014728,2]
[351215476,1738438246380,-343.31628602,0.0001479,2]
[351215477,1738438246390,-235.63,0.00014971,2]
[351215478,1738438246400,-1500.0,0.00014975,2]
[351215479,1738438246409,-2656.98609318,0.00015003,2]
[351215480,1738438246419,-344.27,0.00015018,2]
[351215481,1738438246430,-1000.0,0.0001514,2]
[351215482,1738438246442,-160.97913918,0.0001521,2]
[351215483,1738438246455,-899.24,0.00015278,2]
[351215484,1738438246464,-300.0,0.00015278,2]
[351215485,1738438246474,-358.66,0.00015278,2]
[351215486,1738438246484,-674.27,0.00015278,2]
[351215487,1738438246494,-2656.98609318,0.00015279,2]
[351215488,1738438246503,-561.71,0.00015302,2]
[351215489,1738438246512,-150.99,0.0001531,2]
[351215490,1738438246521,-16657.02,0.0001531,2]
[351215491,1738438246531,-9999.99,0.0001531,2]
[351215492,1738438246541,-1369.61,0.0001531,2]
[351215493,1738438246550,-393.99,0.0001531,2]
[351215494,1738438246559,-999.99,0.0001531,2]
[351215495,1738438246568,-150.99,0.0001531,2]
[351215496,1738438246577,-1876.35,0.0001531,2]
[351215497,1738438246586,-7490.97,0.0001531,2]
[351215498,1738438246596,-1000.0,0.00015539,2]
[351215499,1738438246606,-2656.98609318,0.00015555,2]
[351215500,1738438246615,-1271.0,0.00015585,2]
[351215501,1738438246624,-1003.0,0.00015585,2]
[351215502,1738438246633,-150.0,0.00015585,2]
[351215503,1738438246643,-4000.0,0.0001572,2]
[351215504,1738438246652,-500.0,0.00015753,2]
[351215505,1738438246661,-346.91042057,0.00015779,2]
[351215506,1738438246675,-1601.947,0.00015779,2]
[351215507,1738438246684,-2890.0664,0.00015779,2]
[351215508,1738438246694,-4345.5008,0.0001578,2]
[351215509,1738438246704,-36015.4145,0.0001578,2]
[351215510,1738438246713,-921.0917,0.0001578,2]
[351215511,1738438246723,-4484.8336,0.0001578,2]
[351215512,1738438246733,-566.36857646,0.0001578,2]
[351215513,1738438246742,-160.96792776,0.0001578,2]
[351215514,1738438246751,-875.58,0.000158,2]
[351215515,1738438246760,-300.0,0.000158,2]
[351215516,1738438246770,-150.0,0.000158,2]
[351215517,1738438246779,-2656.98609318,0.00015831,2]
[351215518,1738438246788,-566.36857642,0.00015842,2]
[351215519,1738438246797,-823.0,0.00015874,2]
[351215520,1738438246806,-500.0,0.00015879,2]
[351215521,1738438246815,-500.0,0.00015879,2]
[351215522,1738438246825,-500.0,0.00015879,2]
[351215523,1738438246834,-500.0,0.00015879,2]
[351215524,1738438246843,-500.0,0.00015879,2]
[351215525,1738438246852,-500.0,0.00015879,2]
[351215526,1738438246862,-500.0,0.00015879,2]
[351215527,1738438246871,-492.54502283,0.00015879,2]
[351215528,1738438246881,-500.0,0.00015879,2]
[351215529,1738438246890,-1000.0,0.00015879,2]
[351215530,1738438246899,-151.0,0.00015879,2]
[351215531,1738438246909,-151.0,0.00015879,2]
[351215532,1738438246918,-212.239583,0.00015879,2]
[351215533,1738438246927,-151.0,0.00015879,2]
[351215534,1738438246937,-10000.0,0.00015879,2]
[351215535,1738438246947,-10000.0,0.00015879,2]
[351215536,1738438246957,-185.16098142,0.00015879,2]
[351215537,1738438246966,-199.5963322,0.00015879,2]
[351215538,1738438246976,-86020.29304615,0.0001588,2]
[351215539,1738438246985,-184.13141257,0.0001588,2]
[351215540,1738438246994,-22641.39377462,0.0001588,2]
[351215541,1738438247011,-735.99999652,0.0001588,2]
[351215542,1738438247027,-322.3,0.0001588,2]
[351215543,1738438290729,150.0,0.00018055,120]
[351215544,1738438350734,150.0,0.00020291,120]
[351215545,1738438390634,500.0,0.00023,120]
[351215546,1738438394640,2000.0,0.00023,120]
[351215547,1738438407105,200.0,0.00023,120]
[351215548,1738438410869,150.0,0.00021855,120]
[351215549,1738438470717,150.0,0.00022727,120]
[351215550,1738438530799,150.0,0.0002252,120]
[351215551,1738438701408,306.88366983,0.00010661,7]
[351215553,1738438966057,5831.31870878,0.00013122,6]
[351215554,1738438990571,500.0,0.00023,120]
[351215555,1738438993470,2000.0,0.00023,120]
[351215556,1738438993941,739.80991336,0.00023,120]
[351215557,1738439007291,200.0,0.00023,120]
[351215558,1738439142667,160.93,0.00010137,2]
[351215574,1738439432289,-591.48,0.00012674,2]
[351215575,1738439432301,-150.0,0.00012755,2]
[351215576,1738439432312,-550.0,0.00013,2]
[351215577,1738439432322,-150.0,0.00013208,2]
[351215578,1738439432331,-183.68475271,0.00013841,2]
[351215579,1738439432341,-150.0,0.00013941,2]
[351215580,1738439432351,-150.0,0.00013941,2]
[351215581,1738439432360,-150.0,0.00013941,2]
[351215582,1738439432369,-150.0,0.00013941,2]
[351215583,1738439432379,-1000.0,0.00014409,2]
[351215584,1738439432388,-300.0,0.00014512,2]
[351215585,1738439432397,-1862.8024136,0.00014513,2]
[351215586,1738439432409,-12458.6275864,0.00014513,2]
[351215587,1738439432419,-500.0,0.00014631,2]
[351215588,1738439432428,-171.17,0.00014744,2]
[351215589,1738439432437,-296.01,0.00014818,2]
[351215590,1738439432447,-221.43,0.00014818,2]
[351215591,1738439432456,-150.0,0.00014852,2]
[351215592,1738439432465,-188.13,0.00014852,2]
[351215593,1738439432475,-4824.67,0.00014896,2]
[351215594,1738439432485,-558.50054948,0.00014938,2]
[351215595,1738439432520,-32.97945052,0.00014938,2]
[351215596,1738439432530,-190.28,0.00014973,2]
[351215597,1738439432539,-105.23545905,0.00015,2]
[351215598,1738439432576,-291.999997,0.00015,2]
[351215599,1738439432597,-202.76454395,0.00015,2]
[351215600,1738439432607,-146.79836235,0.00015,2]
[351215601,1738439432620,-1253.53363765,0.00015,2]
[351215602,1738439432629,-150.0,0.0001502,2]
[351215603,1738439432639,-507.86236235,0.00015021,2]
[351215604,1738439432651,-1687.8,0.00015021,2]
[351215605,1738439432662,-320.09861389,0.00015021,2]
[351215606,1738439432674,-387.0,0.00015021,2]
[351215607,1738439432690,-1090.77739008,0.00015021,2]
[351215608,1738439432702,-25415.65163368,0.00015021,2]
[351215609,1738439432711,-40105.0,0.00015157,2]
[351215610,1738439432720,-150.99,0.0001531,2]
[351215611,1738439432729,-150.99,0.0001531,2]
[351215612,1738439432739,-3915.65,0.0001531,2]
[351215613,1738439432748,-3212.45,0.0001531,2]
[351215614,1738439432758,-2039.2032,0.00015464,2]
[351215615,1738439432767,-905.4395,0.000156,2]
[351215616,1738439432776,-166.31838758,0.00015621,2]
[351215617,1738439432789,-1001.80491539,0.0001565,2]
[351215618,1738439432800,-5000.0,0.00015671,2]
[351215619,1738439432810,-1933.869,0.00015671,2]
[351215620,1738439432820,-163.78245065,0.00015679,2]
[351215621,1738439432831,-21501.4432,0.0001568,2]
[351215622,1738439432842,-6216.06617164,0.0001568,2]
[351215623,1738439432851,-161.55867583,0.0001568,2]
[351215624,1738439432862,-31610.38950822,0.00015692,2]
[351215625,1738439432885,-626.622362,0.00015692,2]
[351215626,1738439432896,-839.4699975,0.00015692,2]
[351215627,1738439432907,-209093.03567804,0.00015692,2]
[351215628,1738439434866,-507.959,0.00015485,2]
[351215629,1738439434933,-3094.26002,0.00015485,2]
[351215630,1738439434943,-58794.76207188,0.00015692,2]
[351215631,1738439435032,-324.26980336,0.00015692,2]
[351215632,1738439435046,-32010.48453936,0.00015692,2]
[351215633,1738439435055,-514.01074,0.0001572,2]
[351215634,1738439435064,-558.19157498,0.0001573,2]
[351215635,1738439435073,-6216.06617163,0.00015738,2]
[351215636,1738439435083,-500.0,0.00015753,2]
[351215638,1738439435093,-173.34132476,0.00015769,2]
[351215640,1738439435103,-58223.93195024,0.00015771,2]
[351215642,1738439435113,-1274.576079,0.00015771,2]
[351215644,1738439435122,-1274.576079,0.00015771,2]
[351215645,1738439435132,-1093.3727,0.00015771,2]
[351215647,1738439435141,-381517.91013039,0.00015779,2]
[351215650,1738439435157,-1468.79293196,0.00015779,2]
[351215652,1738439435168,-638.88629277,0.00015779,2]
[351215682,1738439438584,-2097.4,0.00015779,2]
[351215683,1738439438595,-1496.98676046,0.00015779,2]
[351215684,1738439438607,-883.29504074,0.00015779,2]
[351215685,1738439438619,-741.98630755,0.00015779,2]
[351215686,1738439438630,-420.7117,0.00015779,2]
[351215687,1738439438641,-1208.50730025,0.00015779,2]
[351215688,1738439438652,-111716.0,0.00015779,2]